bitfinex/quotes_BTCUSD_20250308
["timestamp","ask_amount","ask_price","bid_price","bid_amount"]
[1741447963421,0.57784601,86762.0,86761.0,0.00110644]
[1741447964578,0.34733101,86762.0,86761.0,0.00110644]
[1741447965014,0.33580601,86762.0,86761.0,0.00110644]
[1741447966078,0.04444892,86762.0,86761.0,0.10640644]
[1741447966698,0.04444892,86762.0,86761.0,0.08140644]
[1741447966896,0.04344892,86762.0,86761.0,0.08140644]
[1741447967310,0.04344892,86762.0,86761.0,0.08708104]
[1741447967449,0.04344892,86762.0,86761.0,0.09860604]
[1741447968889,0.04344892,86762.0,86761.0,0.09894604]
[1741447969399,0.04344892,86762.0,86761.0,0.08742104]
[1741447969604,0.05497392,86762.0,86761.0,0.08742104]
[1741447969833,0.05497392,86762.0,86761.0,0.08842104]
[1741447970102,0.04344892,86762.0,86761.0,0.08843233]
[1741447971343,0.03480601,86762.0,86761.0,0.35547533]
[1741447971997,0.01808207,86762.0,86761.0,0.55291533]
[1741447972176,0.03423114,86772.0,86769.0,0.025]
[1741447972398,0.011524,86772.0,86770.0,0.0776]
[1741447972593,0.011524,86772.0,86770.0,0.08328644]
[1741447972794,0.530471,86779.0,86773.0,0.011524]
[1741447973002,0.541994,86779.0,86774.0,0.0498]
[1741447973297,0.011523,86778.0,86775.0,0.00568644]
[1741447973610,0.3,86779.0,86775.0,0.26116644]
[1741447973811,0.01625049,86779.0,86776.0,0.0776]
[1741447974014,0.011523,86777.0,86776.0,0.0776]
[1741447974166,0.011523,86777.0,86776.0,0.0756]
[1741447974378,0.011523,86777.0,86776.0,0.08128644]
[1741447974577,0.011523,86777.0,86776.0,0.0756]
[1741447974986,0.011523,86777.0,86776.0,0.08128644]
[1741447975549,0.02960243,86777.0,86776.0,0.08128644]
[1741447976531,0.012523,86777.0,86776.0,0.08128644]
[1741447977132,0.014523,86777.0,86776.0,0.08128644]
[1741447977521,0.244998,86777.0,86776.0,0.08128644]
[1741447980162,0.014523,86777.0,86776.0,0.08128644]
[1741447980751,0.014693,86777.0,86776.0,0.08128644]
[1741447980956,0.2632472,86777.0,86776.0,0.08128644]
[1741447981362,0.2632472,86777.0,86776.0,0.0756]
[1741447981683,0.011524,86771.0,86770.0,0.0804]
[1741447981882,0.011525,86766.0,86765.0,0.1677]
[1741447982103,0.24203,86766.0,86765.0,0.1677]
[1741447982310,0.24203,86766.0,86765.0,0.0463]
[1741447982515,0.24203,86766.0,86761.0,0.00144644]
[1741447982516,0.011525,86762.0,86761.0,0.00144644]
[1741447983158,0.020272,86762.0,86761.0,0.00144644]
[1741447984634,0.04293587,86762.0,86761.0,0.00144644]
[1741447985749,0.04393587,86762.0,86761.0,0.00144644]
[1741447986114,0.04693587,86762.0,86761.0,0.00144644]
[1741447988025,0.04693587,86762.0,86761.0,0.08184644]
[1741447988026,0.012747,86762.0,86761.0,0.08184644]
[1741447988225,0.012747,86762.0,86761.0,0.16467144]
[1741447988435,0.012747,86762.0,86761.0,0.17039883]
[1741447988940,0.004,86762.0,86761.0,0.17039883]
[1741447989257,0.001,86762.0,86761.0,0.17039883]
[1741447989487,0.6289,86769.0,86768.0,0.011524]
[1741447989695,0.530647,86777.0,86776.0,0.061523]
[1741447989696,0.00017,86777.0,86776.0,0.061523]
[1741447989911,0.00017,86777.0,86776.0,0.310023]
[1741447990328,0.00017,86777.0,86776.0,0.31568421]
[1741447990547,0.00017,86777.0,86776.0,0.31368421]
[1741447991368,0.00017,86777.0,86776.0,0.31468421]
[1741447995368,0.00017,86782.0,86781.0,0.374888]
[1741447995573,0.00017,86782.0,86781.0,0.421988]
[1741447995777,0.00017,86782.0,86781.0,0.42752446]
[1741447997513,0.0001699,86804.0,86803.0,0.421526]
[1741447997729,0.0001699,86804.0,86803.0,0.543046]
[1741447997931,0.0001699,86804.0,86803.0,0.54855593]
[1741447998351,0.0001699,86804.0,86803.0,0.54740049]
[1741447998562,0.0001699,86804.0,86803.0,0.54640049]
[1741447998760,0.00055418,86804.0,86803.0,0.54640049]
[1741447999159,0.00055418,86804.0,86803.0,0.55040049]
[1741447999755,0.00055418,86804.0,86803.0,0.55240049]
[1741448000804,0.00055418,86804.0,86803.0,0.32199449]
[1741448000986,0.00055418,86804.0,86803.0,0.32163449]
[1741448001189,0.0186279,86804.0,86803.0,0.32163449]
[1741448001603,0.00055418,86804.0,86803.0,0.32163449]
[1741448001813,0.00055418,86804.0,86803.0,0.29878993]
[1741448001947,0.00055418,86804.0,86803.0,0.27378993]
[1741448002150,0.00055418,86804.0,86803.0,0.11840993]
[1741448002369,0.00055418,86804.0,86803.0,0.05935449]
[1741448003141,0.00055418,86804.0,86803.0,0.05535449]
[1741448003526,0.01207418,86804.0,86803.0,0.03250993]
[1741448003890,0.00055418,86804.0,86803.0,0.05535449]
[1741448004088,0.00055418,86804.0,86803.0,0.03250993]
[1741448004528,0.00055418,86804.0,86803.0,0.03050993]
[1741448004802,0.01862857,86804.0,86803.0,0.03450993]
[1741448005012,0.01862857,86804.0,86803.0,0.03750993]
[1741448005256,0.01862857,86804.0,86803.0,0.03350993]
[1741448005459,0.01862857,86804.0,86803.0,0.03250993]
[1741448005633,0.01862857,86804.0,86803.0,0.03550993]
[1741448005838,0.00055418,86804.0,86803.0,0.03550993]
[1741448008387,0.00055418,86804.0,86803.0,0.04587444]
[1741448009337,0.01862798,86804.0,86803.0,0.04587444]
[1741448009837,0.03014798,86804.0,86803.0,0.03435444]
[1741448010051,0.03014798,86804.0,86803.0,0.00935444]
[1741448010433,0.01207418,86804.0,86803.0,0.00935444]
[1741448010638,0.01207418,86804.0,86803.0,0.005]
[1741448010833,0.51207418,86804.0,86803.0,0.003]
[1741448011079,1.44186004,86804.0,86803.0,0.0013069]
[1741448011395,2.12610904,86804.0,86803.0,0.0013069]
[1741448011536,0.241985,86782.0,86781.0,0.02534]
[1741448012567,0.241985,86782.0,86781.0,0.00034]
[1741448012773,0.241985,86782.0,86781.0,0.02534]
[1741448012967,0.241985,86782.0,86781.0,0.02634]
[1741448013329,0.241985,86782.0,86781.0,0.00134]
[1741448013742,0.25740032,86782.0,86781.0,0.00134]
[1741448014183,0.55740032,86782.0,86781.0,0.00134]
[1741448014387,0.55740032,86782.0,86781.0,0.00234]
[1741448015372,0.242019,86770.0,86768.0,0.025]
[1741448015942,0.242019,86770.0,86769.0,0.00536414]
[1741448016361,0.011524,86769.0,86768.0,0.0253398]
[1741448016531,0.011523,86776.0,86769.0,0.00536414]
[1741448016738,0.230479,86776.0,86771.0,0.03436856]
[1741448016930,0.230484,86774.0,86770.0,0.00547138]
[1741448017146,0.011524,86772.0,86768.0,0.02544624]
[1741448017342,0.011524,86769.0,86768.0,0.02544624]
[1741448017669,0.011524,86769.0,86768.0,0.00044624]
[1741448017843,0.311524,86769.0,86768.0,0.00044624]
[1741448018304,0.32960546,86769.0,86768.0,0.00044624]
[1741448018495,0.011525,86762.0,86761.0,0.00063027]
[1741448018651,0.011525,86762.0,86761.0,0.00069679]
[1741448019065,0.24204,86762.0,86761.0,0.00069679]
[1741448020468,0.011525,86761.0,86760.0,0.00454081]
[1741448020785,0.011525,86761.0,86760.0,0.00465629]
[1741448022233,0.013525,86761.0,86760.0,0.00465629]
[1741448022552,0.313525,86761.0,86760.0,0.00465629]
[1741448023917,0.002,86761.0,86760.0,0.00465629]
[1741448024126,0.002,86761.0,86760.0,0.02164572]
[1741448024323,0.002,86761.0,86760.0,0.12339028]
[1741448025160,0.002,86761.0,86760.0,0.19749028]
[1741448025383,0.230502,86767.0,86762.0,0.02284456]
[1741448025591,0.542018,86771.0,86770.0,0.02284456]
[1741448025801,0.3,86769.0,86768.0,0.02284456]
[1741448026004,0.3,86769.0,86768.0,0.02732492]
[1741448026302,0.011524,86774.0,86768.0,0.03884892]
[1741448026501,0.3,86774.0,86769.0,0.011524]
[1741448026865,0.3,86774.0,86770.0,0.00549159]
[1741448027288,0.3,86774.0,86769.0,0.011524]
[1741448027458,0.3,86774.0,86770.0,0.01991201]
[1741448027648,0.3,86774.0,86770.0,0.0254036]
[1741448027849,0.3,86774.0,86770.0,0.01991201]
[1741448028077,0.3,86774.0,86771.0,0.00549159]
[1741448028436,0.301,86774.0,86771.0,0.00549159]
[1741448028852,0.3,86774.0,86771.0,0.00549159]
[1741448029105,0.32008086,86774.0,86771.0,0.00549159]
[1741448029350,0.01908086,86774.0,86771.0,0.24750659]
[1741448029815,0.02008086,86774.0,86771.0,0.24750659]
[1741448030067,0.01908086,86774.0,86773.0,0.011524]
[1741448030511,0.01908086,86774.0,86773.0,0.01700619]
[1741448030956,0.01908086,86774.0,86773.0,0.00548219]
[1741448031848,0.001,86774.0,86773.0,0.00548219]
[1741448032108,0.002,86774.0,86773.0,0.24749219]
[1741448032405,0.002,86774.0,86773.0,0.2674042]
[1741448032900,0.002,86774.0,86773.0,0.0369182]
[1741448033685,0.002,86774.0,86773.0,0.2674042]
[1741448034134,0.002,86774.0,86773.0,0.0253942]
[1741448035003,0.002,86774.0,86773.0,0.2674042]
[1741448040288,0.00217,86774.0,86773.0,0.2674042]
[1741448041665,0.0202497,86774.0,86773.0,0.2674042]
[1741448042065,0.0202497,86774.0,86773.0,0.3384042]
[1741448042263,0.0202497,86774.0,86773.0,0.41534827]
[1741448042468,0.0202497,86774.0,86773.0,0.4149042]
[1741448042682,0.00217,86774.0,86773.0,0.4149042]
[1741448042881,0.00117,86774.0,86773.0,0.4149042]
[1741448043085,0.00017,86774.0,86773.0,0.4149042]
[1741448043367,0.00217,86774.0,86773.0,0.1728942]
[1741448043561,0.00217,86774.0,86773.0,0.1844182]
[1741448044796,0.00017,86774.0,86773.0,0.1844182]
[1741448044948,0.00117,86774.0,86773.0,0.1854182]
[1741448045979,0.00117,86774.0,86773.0,0.1604182]
[1741448046184,0.00117,86774.0,86773.0,0.1488942]
[1741448046386,0.00117,86774.0,86773.0,0.1738942]
[1741448046606,0.00117,86774.0,86773.0,0.1488942]
[1741448046970,0.00117,86774.0,86773.0,0.1738942]
[1741448047177,0.01924975,86774.0,86773.0,0.1738942]
[1741448048180,0.01924975,86774.0,86773.0,0.1854182]
[1741448049864,0.00117,86774.0,86773.0,0.1854182]
[1741448050074,0.00117,86774.0,86773.0,0.18657054]
[1741448050287,0.00117,86774.0,86773.0,0.18703167]
[1741448051746,0.00117,86774.0,86773.0,0.18587933]
[1741448053005,0.01924694,86774.0,86773.0,0.18587933]
[1741448053463,0.01924694,86774.0,86773.0,0.1854182]
[1741448053907,0.01924694,86774.0,86773.0,0.16550619]
[1741448054113,0.00117,86774.0,86773.0,0.1854182]
[1741448057998,0.00117,86774.0,86773.0,0.18657049]
[1741448058246,0.00117,86774.0,86773.0,0.1854182]
[1741448058445,0.01924744,86774.0,86773.0,0.18567688]
[1741448058738,0.01924744,86774.0,86773.0,0.1854182]
[1741448058956,0.00117,86774.0,86773.0,0.1854182]
[1741448059670,0.00117,86774.0,86773.0,0.16550619]
[1741448059875,0.00117,86774.0,86773.0,0.1854182]
[1741448061205,0.01924817,86774.0,86773.0,0.16550619]
[1741448061412,0.01924817,86774.0,86773.0,0.1854182]
[1741448061611,0.01924817,86774.0,86773.0,0.16550619]
[1741448061809,0.01924817,86774.0,86773.0,0.1854182]
[1741448062034,0.01924817,86774.0,86773.0,0.16550619]
[1741448062235,0.01924817,86774.0,86773.0,0.1854182]
[1741448062633,0.00117,86774.0,86773.0,0.1854182]
[1741448062838,0.241951,86794.0,86788.0,0.241967]
[1741448062956,0.230427,86796.0,86791.0,0.011521]
[1741448063155,0.02602612,86800.0,86793.0,0.241954]
[1741448063369,0.25644212,86800.0,86795.0,0.011521]
[1741448063569,0.01450612,86800.0,86796.0,0.00537758]
[1741448063871,0.0001699,86803.0,86802.0,0.26184101]
[1741448064224,0.00028521,86803.0,86802.0,0.02843201]
[1741448064424,0.00028521,86803.0,86802.0,0.03380959]
[1741448064833,0.00028521,86803.0,86802.0,0.02228959]
[1741448065033,0.01485139,86803.0,86802.0,0.02228959]
[1741448065234,0.01485139,86803.0,86802.0,0.26121859]
[1741448065733,0.00028521,86803.0,86802.0,0.25621859]
[1741448066095,0.00628521,86803.0,86802.0,0.25621859]
[1741448066294,0.01228521,86803.0,86802.0,0.25621859]
[1741448066516,0.00628521,86803.0,86802.0,0.25621859]
[1741448066722,0.00028521,86803.0,86802.0,0.25621859]
[1741448066916,0.00628521,86803.0,86802.0,0.01428959]
[1741448068423,0.00628521,86803.0,86802.0,0.24469859]
[1741448068634,0.00628521,86803.0,86802.0,0.25621859]
[1741448070047,0.02436033,86803.0,86802.0,0.25621859]
[1741448070624,0.02436033,86803.0,86802.0,0.23814348]
[1741448072987,0.02436033,86803.0,86802.0,0.26314348]
[1741448073605,0.00628521,86803.0,86802.0,0.26314348]
[1741448074215,0.00628521,86803.0,86802.0,0.03652]
[1741448074401,0.00628521,86803.0,86802.0,0.025]
[1741448074598,0.00628521,86803.0,86802.0,0.03652]
[1741448075869,0.00628521,86803.0,86802.0,0.0368598]
[1741448076274,0.00628521,86803.0,86802.0,0.1183598]
[1741448077286,0.00328521,86803.0,86802.0,0.1183598]
[1741448078139,0.02135953,86803.0,86802.0,0.1183598]
[1741448078314,0.01917619,86816.0,86803.0,0.01152]
[1741448078521,0.00038479,86816.0,86811.0,0.011519]
[1741448078897,0.00038479,86816.0,86812.0,0.011519]
[1741448079108,0.00038479,86816.0,86813.0,0.230377]
[1741448079330,0.00038479,86816.0,86812.0,0.011519]
[1741448079627,0.00038479,86816.0,86810.0,0.241907]
[1741448080346,0.00438479,86816.0,86810.0,0.241907]
[1741448080671,0.02196382,86816.0,86811.0,0.011519]
[1741448081085,0.230374,86815.0,86808.0,0.241912]
[1741448081491,0.230381,86813.0,86808.0,0.011519]
[1741448081694,0.03348182,86816.0,86810.0,0.011519]
[1741448081897,0.01807399,86814.0,86810.0,0.011519]
[1741448082029,0.01807399,86814.0,86811.0,0.230385]
[1741448082238,0.01807399,86814.0,86810.0,0.011519]
[1741448082639,0.002,86813.0,86811.0,0.230385]
[1741448082848,0.002,86813.0,86811.0,0.241904]
[1741448083048,0.01807399,86814.0,86813.0,0.23038]
[1741448083303,0.02107399,86814.0,86813.0,0.241899]
[1741448083730,0.01807399,86814.0,86813.0,0.241899]
[1741448084279,0.02107399,86814.0,86813.0,0.241899]
[1741448084682,0.02107399,86814.0,86813.0,0.318299]
[1741448084858,0.003,86814.0,86813.0,0.318299]
[1741448085446,0.003,86814.0,86813.0,0.315299]
[1741448085653,0.01496382,86816.0,86815.0,0.011518]
[1741448085852,0.01496382,86816.0,86815.0,0.008518]
[1741448086035,0.01496382,86816.0,86815.0,0.005518]
[1741448086437,0.01496382,86816.0,86815.0,0.235892]
[1741448086860,0.02196382,86816.0,86815.0,0.235892]
[1741448087899,0.02196382,86816.0,86815.0,0.282092]
[1741448089276,0.01496382,86816.0,86815.0,0.282092]
[1741448089473,0.01596382,86816.0,86813.0,0.087919]
[1741448089672,0.01596382,86816.0,86813.0,0.0764]
[1741448090240,0.01596382,86816.0,86813.0,0.306779]
[1741448090453,0.01596382,86816.0,86813.0,0.318298]
[1741448090854,0.01496382,86816.0,86813.0,0.318298]
[1741448091748,0.01496382,86816.0,86813.0,0.308298]
[1741448092353,0.03403684,86816.0,86813.0,0.077919]
[1741448092993,0.03403684,86816.0,86813.0,0.308296]
[1741448093206,0.03403684,86816.0,86813.0,0.077919]
[1741448094042,0.03403684,86816.0,86813.0,0.308296]
[1741448094293,0.10929867,86819.0,86814.0,0.011518]
[1741448094697,0.01807293,86816.0,86813.0,0.077919]
[1741448094845,0.011518,86819.0,86813.0,0.077919]
[1741448095661,0.230366,86818.0,86813.0,0.077919]
[1741448095869,0.24520015,86818.0,86813.0,0.077919]
[1741448097148,0.25871815,86818.0,86813.0,0.077919]
[1741448097383,0.26071815,86818.0,86813.0,0.0664]
[1741448097564,0.241891,86816.0,86813.0,0.0664]
[1741448097735,0.011518,86815.0,86810.0,0.011519]
[1741448097943,0.03035215,86818.0,86811.0,0.241904]
[1741448098151,0.01883415,86818.0,86814.0,0.011518]
[1741448098310,0.01883415,86818.0,86815.0,0.230374]
[1741448098824,0.01483415,86818.0,86815.0,0.230374]
[1741448099019,0.011517,86822.0,86817.0,0.230368]
[1741448099244,0.001,86818.0,86817.0,0.240886]
[1741448099590,0.01459392,86824.0,86820.0,0.241878]
[1741448099725,0.01459392,86824.0,86820.0,0.240878]
[1741448099927,0.0203055,86825.0,86820.0,0.238878]
[1741448100299,0.0203055,86825.0,86817.0,0.240886]
[1741448100300,0.241868,86824.0,86818.0,0.011518]
[1741448100501,0.241868,86824.0,86819.0,0.230364]
[1741448100707,0.002,86822.0,86819.0,0.230364]
[1741448100887,0.002,86822.0,86819.0,0.228364]
[1741448101541,0.230359,86821.0,86816.0,0.011518]
[1741448101742,0.241876,86821.0,86816.0,0.011518]
[1741448101948,0.011517,86821.0,86816.0,0.011518]
[1741448102143,0.011517,86821.0,86815.0,0.2307118]
[1741448102144,0.241884,86819.0,86815.0,0.0003398]
[1741448102358,0.011518,86817.0,86815.0,0.0003398]
[1741448102581,0.011518,86818.0,86815.0,0.0003398]
[1741448102873,0.013517,86821.0,86815.0,0.0118578]
[1741448103086,0.013517,86821.0,86816.0,0.011518]
[1741448103283,0.002,86821.0,86816.0,0.241889]
[1741448103489,0.01439495,86824.0,86820.0,0.011518]
[1741448103714,0.011516,86834.0,86827.0,0.22934]
[1741448103914,0.00011537,86834.0,86828.0,0.241857]
[1741448104155,0.01163137,86834.0,86828.0,0.011517]
[1741448104587,0.230327,86833.0,86826.0,0.241859]
[1741448104790,0.230327,86833.0,86827.0,0.011517]
[1741448104987,0.02609681,86834.0,86827.0,0.011517]
[1741448105195,0.011516,86831.0,86821.0,0.24578]
[1741448105398,0.011516,86830.0,86822.0,0.011517]
[1741448105730,0.241859,86828.0,86823.0,0.011517]
[1741448105945,0.230335,86830.0,86825.0,0.011517]
[1741448106173,0.011516,86830.0,86825.0,0.230347]
[1741448106365,0.230349,86825.0,86821.0,0.24578]
[1741448106574,0.241866,86825.0,86821.0,0.24578]
[1741448106712,0.230353,86823.0,86821.0,0.24578]
[1741448107110,0.011517,86824.0,86821.0,0.24578]
[1741448107316,0.241866,86825.0,86821.0,0.24578]
[1741448107723,0.011517,86822.0,86821.0,0.1287]
[1741448107992,0.241879,86820.0,86819.0,0.025]
[1741448108146,0.011518,86816.0,86808.0,0.19684]
[1741448108358,0.011518,86816.0,86808.0,0.11684]
[1741448108959,0.011518,86816.0,86808.0,0.14184]
[1741448110129,0.011518,86816.0,86810.0,0.011519]
[1741448110342,0.241879,86820.0,86812.0,0.230382]
[1741448110515,0.011518,86819.0,86814.0,0.011518]
[1741448110691,0.241879,86820.0,86813.0,0.011519]
[1741448110905,0.241879,86820.0,86808.0,0.14184]
[1741448110906,0.011518,86816.0,86808.0,0.14184]
[1741448111288,0.011518,86816.0,86808.0,0.025]
[1741448111798,0.24189,86816.0,86808.0,0.025]
[1741448111998,0.25996268,86816.0,86808.0,0.025]
[1741448113047,0.24844468,86816.0,86810.0,0.011519]
[1741448113247,0.24844468,86816.0,86808.0,0.025]
[1741448113248,0.25996268,86816.0,86808.0,0.025]
[1741448114510,0.25996268,86816.0,86808.0,0.266912]
[1741448117038,0.25996268,86816.0,86808.0,0.025]
[1741448119534,0.25996268,86816.0,86806.0,0.11668]
[1741448119795,0.25996268,86816.0,86808.0,0.025]
[1741448120004,0.25996268,86816.0,86802.0,0.0253398]
[1741448120204,0.24189,86816.0,86802.0,0.0253398]
[1741448120405,0.24189,86816.0,86802.0,0.0003398]
[1741448120743,0.24189,86816.0,86790.0,0.24196]
[1741448120744,0.011522,86787.0,86786.0,0.0798]
[1741448120965,0.241981,86783.0,86782.0,0.0491]
[1741448121739,0.241981,86783.0,86780.0,0.0798]
[1741448121740,0.011523,86781.0,86780.0,0.0798]
[1741448121942,0.011522,86788.0,86780.0,0.1048]
[1741448122148,0.241961,86791.0,86784.0,0.011522]
[1741448122345,0.230417,86800.0,86791.0,0.011521]
[1741448122558,0.241941,86798.0,86792.0,0.0798]
[1741448122769,0.011521,86797.0,86792.0,0.091321]
[1741448122998,0.0177302,86799.0,86797.0,0.011521]
[1741448123240,0.0177302,86799.0,86794.0,0.085621]
[1741448123450,0.0177302,86799.0,86798.0,0.011521]
[1741448123656,0.0177302,86799.0,86798.0,0.11747294]
[1741448123856,0.0177302,86799.0,86798.0,0.116321]
[1741448124393,0.0177302,86799.0,86798.0,0.232681]
[1741448126510,0.0177302,86799.0,86798.0,0.238681]
[1741448126749,0.0177302,86799.0,86798.0,0.243681]
[1741448126908,0.011519,86810.0,86798.0,0.243681]
[1741448127114,0.011519,86810.0,86808.0,0.025]
[1741448127315,0.011519,86810.0,86809.0,0.11632]
[1741448127745,0.011519,86813.0,86809.0,0.11632]
[1741448127957,0.0001699,86819.0,86814.0,0.011518]
[1741448128162,0.011518,86815.0,86809.0,0.358227]
[1741448128359,0.011518,86815.0,86810.0,0.011519]
[1741448128560,0.011518,86817.0,86812.0,0.011519]
[1741448128958,0.230366,86818.0,86813.0,0.011519]
[1741448129157,0.0116879,86819.0,86813.0,0.266898]
[1741448129440,0.2420519,86819.0,86814.0,0.025]
[1741448129642,0.011518,86816.0,86812.0,0.025]
[1741448129822,0.011518,86816.0,86814.0,0.025]
[1741448130728,0.241892,86815.0,86812.0,0.025]
[1741448130947,0.241892,86815.0,86809.0,0.11632]
[1741448130948,0.011519,86812.0,86811.0,0.025]
[1741448131174,0.011519,86812.0,86810.0,0.11632]
[1741448131387,0.01152,86802.0,86796.0,0.230423]
[1741448131590,0.01152,86799.0,86796.0,0.025]
[1741448131793,0.01152,86805.0,86802.0,0.025]
[1741448132132,0.011519,86808.0,86803.0,0.01551987]
[1741448132342,0.011519,86808.0,86803.0,0.24592587]
[1741448132536,0.241914,86808.0,86803.0,0.01551987]
[1741448132944,0.011518,86815.0,86808.0,0.011519]
[1741448133099,0.011518,86815.0,86810.0,0.241904]
[1741448133276,0.011518,86815.0,86811.0,0.01550269]
[1741448133919,0.011519,86813.0,86811.0,0.01550269]
[1741448134272,0.011518,86815.0,86811.0,0.001]
[1741448134478,0.011518,86815.0,86812.0,0.01550269]
[1741448134986,0.011518,86815.0,86813.0,0.01550269]
[1741448135364,0.011518,86817.0,86813.0,0.01550269]
[1741448135573,0.011518,86817.0,86812.0,0.011519]
[1741448135766,0.24188,86820.0,86814.0,0.25739669]
[1741448135969,0.3001699,86819.0,86816.0,0.230371]
[1741448136202,0.3001699,86819.0,86818.0,0.230366]
[1741448136482,0.3001699,86819.0,86818.0,0.24586869]
[1741448136678,0.3001699,86819.0,86818.0,0.33778669]
[1741448136679,0.0001699,86819.0,86818.0,0.33778669]
[1741448137235,0.0001699,86819.0,86818.0,0.09590269]
[1741448137471,0.0001699,86819.0,86818.0,0.09412967]
[1741448138003,0.0001699,86819.0,86818.0,0.01372967]
[1741448138394,0.0001699,86819.0,86815.0,0.011518]
[1741448138532,0.0001699,86819.0,86818.0,0.01532539]
[1741448138729,0.011518,86817.0,86812.0,0.025]
[1741448138981,0.24189,86816.0,86812.0,0.025]
[1741448139628,0.230378,86814.0,86811.0,0.025]
[1741448139827,0.230378,86814.0,86809.0,0.11612]
[1741448139828,0.230385,86811.0,86809.0,0.11612]
[1741448140374,0.011519,86810.0,86809.0,0.11612]
[1741448141406,0.011519,86810.0,86809.0,0.11712]
[1741448141757,0.011519,86810.0,86809.0,0.11612]
[1741448141965,0.011519,86810.0,86809.0,0.11812]
[1741448142213,0.011519,86812.0,86809.0,0.11812]
[1741448142364,0.011519,86812.0,86809.0,0.12012]
[1741448142560,0.241887,86817.0,86809.0,0.12012]
[1741448142895,0.011518,86814.0,86809.0,0.11812]
[1741448143090,0.011519,86813.0,86809.0,0.12012]
[1741448143424,0.230385,86811.0,86809.0,0.12012]
[1741448143633,0.011519,86810.0,86809.0,0.11612]
[1741448143773,0.011519,86810.0,86803.0,0.116]
[1741448143774,0.01152,86804.0,86803.0,0.116]
[1741448144618,0.01152,86804.0,86795.0,0.0765]
[1741448144619,0.241926,86803.0,86795.0,0.0765]
[1741448145030,0.241926,86803.0,86793.0,0.11644]
[1741448145941,0.241926,86803.0,86797.0,0.025]
[1741448146370,0.241926,86803.0,86802.0,0.0023398]
[1741448146946,0.241926,86803.0,86802.0,0.0033398]
[1741448147621,0.241926,86803.0,86802.0,0.00174409]
[1741448147843,0.02959445,86803.0,86802.0,0.00174409]
[1741448148253,0.02959445,86803.0,86802.0,0.01707171]
[1741448148649,0.26000045,86803.0,86802.0,0.01707171]
[1741448148879,0.241926,86803.0,86802.0,0.00174409]
[1741448150679,0.241926,86803.0,86802.0,0.00208389]
[1741448150977,0.2420959,86803.0,86802.0,0.00208389]
[1741448152038,0.26017062,86803.0,86802.0,0.00208389]
[1741448152890,0.01824462,86803.0,86802.0,0.00208389]
[1741448153114,0.01824462,86803.0,86802.0,0.08368389]
[1741448153281,0.0001699,86803.0,86802.0,0.09901151]
[1741448153682,0.0001699,86803.0,86802.0,0.15943151]
[1741448154140,0.0001699,86803.0,86802.0,0.16043151]
[1741448154352,0.0001699,86803.0,86802.0,0.15943151]
[1741448154491,0.0001699,86803.0,86802.0,0.15868742]
[1741448154689,0.0001699,86803.0,86802.0,0.16068742]
[1741448154892,0.0001699,86803.0,86802.0,0.16268742]
[1741448155303,0.0001699,86803.0,86802.0,0.16068742]
[1741448155500,0.0001699,86803.0,86802.0,0.18568742]
[1741448155729,0.0001699,86803.0,86802.0,0.18868742]
[1741448157538,0.0001699,86803.0,86802.0,0.18725128]
[1741448161018,0.01824309,86803.0,86802.0,0.18725128]
[1741448163260,0.01824309,86803.0,86802.0,0.30301128]
[1741448163890,0.01824309,86803.0,86802.0,0.30335108]
[1741448166472,0.01824309,86803.0,86802.0,0.29042577]
[1741448172844,0.01824309,86803.0,86802.0,0.28742577]
[1741448173043,0.0001699,86803.0,86802.0,0.28742577]
[1741448173246,0.0001699,86803.0,86802.0,0.28774568]
[1741448173591,0.0001699,86803.0,86802.0,0.28574568]
[1741448173745,0.0001699,86803.0,86802.0,0.30395036]
[1741448173946,0.0001699,86803.0,86802.0,0.30595036]
[1741448174227,0.0001699,86803.0,86802.0,0.28574568]
[1741448174414,0.0001699,86803.0,86802.0,0.28774568]
[1741448174620,0.0001699,86803.0,86802.0,0.29142577]
[1741448174826,0.0001699,86803.0,86802.0,0.29174568]
[1741448175411,0.0001699,86803.0,86802.0,0.28974568]
[1741448175571,0.0001699,86803.0,86802.0,0.28942577]
[1741448175781,0.0001699,86803.0,86802.0,0.29374568]
[1741448175993,0.0001699,86803.0,86802.0,0.29342577]
[1741448176438,0.01824087,86803.0,86802.0,0.29342577]
[1741448177019,0.01824087,86803.0,86802.0,0.29367696]
[1741448177399,0.0001699,86803.0,86802.0,0.29367696]
[1741448178286,0.0001699,86803.0,86802.0,0.29342577]
[1741448178709,0.0001699,86803.0,86802.0,0.29372587]
[1741448179354,0.0001699,86803.0,86802.0,0.29342577]
[1741448179777,0.0001699,86803.0,86802.0,0.29372587]
[1741448179978,0.0001699,86803.0,86802.0,0.29342577]
[1741448180577,0.01824091,86803.0,86802.0,0.29342577]
[1741448184151,0.01824091,86803.0,86802.0,0.17766577]
[1741448184360,0.01824091,86803.0,86802.0,0.26758577]
[1741448184534,0.01824091,86803.0,86802.0,0.29258577]
[1741448184736,0.01824091,86803.0,86802.0,0.26758577]
[1741448184936,0.01824091,86803.0,86802.0,0.16358742]
[1741448185134,0.2420959,86803.0,86802.0,0.02088548]
[1741448185843,0.2420959,86803.0,86802.0,0.00559742]
[1741448186706,0.0001699,86803.0,86802.0,0.02659742]
[1741448186941,0.0001699,86803.0,86802.0,0.025]
[1741448187122,0.0001699,86803.0,86802.0,0.0157553]
[1741448187364,0.2420959,86803.0,86802.0,0.0157553]
[1741448187563,0.2420959,86803.0,86802.0,0.0150951]
[1741448187776,0.2420959,86803.0,86802.0,0.0273398]
[1741448187918,0.2420959,86803.0,86802.0,0.0023398]
[1741448188126,0.2420959,86803.0,86802.0,0.0180951]
[1741448188519,0.2420959,86803.0,86802.0,0.0043398]
[1741448189072,0.01807418,86803.0,86802.0,0.0043398]
[1741448189444,0.01807418,86803.0,86802.0,0.0180951]
[1741448189884,0.01152,86803.0,86802.0,0.0180951]
[1741448190079,0.01152,86805.0,86802.0,0.0430951]
[1741448190345,0.01152,86805.0,86804.0,0.025]
[1741448190496,0.011519,86808.0,86804.0,0.03877548]
[1741448190703,0.011519,86813.0,86804.0,0.28069848]
[1741448190900,0.011519,86813.0,86806.0,0.036519]
[1741448191168,0.011519,86813.0,86808.0,0.230393]
[1741448191357,0.011518,86814.0,86807.0,0.02529448]
[1741448191571,0.011519,86812.0,86807.0,0.02529448]